Cogmind - Beta 13 @@@ ROGUE MODE // 2024.04.04 @ 17:31:37 Player: captainketchup Result: Destroyed by SE-MXN(R) with Subdweller Laser Performance ------------- Evolutions (0) 0 Regions Visited (3) 600 Robots Destroyed (16) 80 Value Destroyed (421) 421 Prototype IDs (0) 0 Alien Tech Used (0) 0 Bonus (0) 0 TOTAL SCORE: 1101 Bonus ------- None Cogmind --------- Core Integrity 0/250 Matter 220/300 Energy 100/100 System Corruption 0% Temperature Cool (6) Movement Core (350) Ox6 Location -10/Subcaves Parts ------- > --- POWER (1) -------- (None) > --- PROPULSION (2) --- (None) > --- UTILITY (2) ------ Small Storage Unit Medium Storage Unit > --- WEAPON (2) ------- Improved Light Cannon > --- INVENTORY (10) --- Wheel Wheel Wheel Wheel Light Armor Plating Light Armor Plating Light Armor Plating Makeshift Kinetic Plating Improved Light Cannon Improved Light Cannon Peak State ------------ > --- POWER ------------ Ion Engine > --- PROPULSION ------- Light Treads Light Treads > --- UTILITY ---------- Small Storage Unit Medium Storage Unit > --- WEAPON ----------- Improved Light Cannon Improved Light Cannon > --- INVENTORY -------- Light Ion Engine Wheel Wheel Wheel Spread Laser Spread Laser Improved Light Cannon Improved Light Cannon [Rating: 10] Favorites ----------- Power Ion Engine Engine Ion Engine Propulsion Light Treads Treads Light Treads Wheel Wheel Utility Small Storage Unit Storage Small Storage Unit Weapon Improved Light Cannon Ballistic Gun Light Assault Rifle Ballistic Cannon Improved Light Cannon Launcher Rocket Launcher Build | -11 -10 -10 -10 ------- Run | Yrd Mat Min Sub Slots Evolved . | . . . . Power . | . . . . Propulsion . | . . . . Utility . | . . . . Weapon . | . . . . Parts Attached 16 | 6 3 5 2 Power 2 | 1 . 1 . Engine 2 | 1 . 1 . Core . | . . . . Reactor . | . . . . Propulsion 5 | 2 . 3 . Treads 2 | 2 . . . Leg . | . . . . Wheel 3 | . . 3 . Hover . | . . . . Flight . | . . . . Utility 2 | 1 1 . . Device . | . . . . Storage 2 | 1 1 . . Processor . | . . . . Hackware . | . . . . Protection . | . . . . Artifact . | . . . . Weapon 7 | 2 2 1 2 Energy Gun . | . . . . Energy Cannon . | . . . . Ballistic Gun 2 | 2 . . . Ballistic Cannon 3 | . 2 . 1 Launcher 2 | . . 1 1 Special Weapon . | . . . . Impact Weapon . | . . . . Slashing Weapon . | . . . . Piercing Weapon . | . . . . Special Melee Weapon . | . . . . Unidentified Prototypes . | . . . . Parts Lost 5 | . . 2 3 Power 1 | . . 1 . Propulsion 3 | . . 1 2 Utility . | . . . . Weapon 1 | . . . 1 Highest Loss Streak 3 | . . 2 3 To Critical Strikes . | . . . . Average Slot Usage (%) 88 | . 93 87 84 Engine 5 | . 14 3 . Treads 11 | . 28 6 . Wheel 16 | . . 20 27 Storage 25 | . 21 28 28 Ballistic Gun 1 | . 3 . . Ballistic Cannon 21 | . 24 24 15 Launcher 5 | . . 3 12 Naked Turns . | . . . . Heaviest Build 28 | 12 28 28 23 Greatest Support 40 | 40 40 40 26 Greatest Overweight (x) 2 | . . 2 . Average Overweight (x) . | . . . . Largest Inventory Capacity 10 | 8 10 10 10 Average Capacity 9 | 7 9 10 10 Most Carried 10 | 3 10 10 10 Average Carried 8 | 2 8 9 9 Final Capacity 10 | 8 10 10 10 Final Carried 10 | 3 10 10 10 Class Distribution -------------------- 100% | Mutant Dominant Class ---------------- Mutant | -10/Materials Mutant | -10/Mines Mutant | -10/Subcaves Resources | -11 -10 -10 -10 ----------- Run | Yrd Mat Min Sub Matter Collected 679 | 137 174 173 195 Remotely . | . . . . Salvage Created 368 | . 195 41 132 Parts 29 | . 19 2 8 Haulers Intercepted 1 | . 1 . . Recyclers Shooed . | . . . . Parts Field Recycled . | . . . . Retrieved Matter . | . . . . Parts Self-Destructed 1 | . . . 1 Prevented . | . . . . Kills | -11 -10 -10 -10 ------- Run | Yrd Mat Min Sub Combat Hostiles Destroyed 20 | . 6 8 6 Cannons 13 | . 6 6 1 AOE 7 | . . 2 5 Classes Destroyed 6 | . 4 1 1 Hauler 1 | . 1 . . Watcher 1 | . 1 . . Swarmer 5 | . 3 2 . Grunt 5 | . 3 . 2 Subdweller 4 | . . . 4 Assembled 6 | . . 6 . Best Kill Streak 5 | . 3 5 4 Combat Bots Only 5 | . 3 5 4 Max Kills in Single Turn 2 | . 1 2 1 Gunslinging . | . . . . Exploded 2 | . . 2 1 Melee . | . . . . Uniques/NPCs Destroyed . | . . . . Combat | -11 -10 -10 -10 -------- Run | Yrd Mat Min Sub Hostile Shots Fired 83 | . 11 50 22 Missed 24 | . 1 15 8 Damage Taken 991 | . 84 531 376 Core 263 | . 15 79 169 Absorbed by Shields . | . . . . Core Remaining (%) 100 | 100 . . . Volleys Fired 44 | . 10 18 16 Largest 2 | . 2 2 2 Hottest 78 | . 78 78 78 Shots Fired 78 | . 20 34 24 Gun . | . . . . Cannon 62 | . 20 31 11 Launcher 16 | . . 3 13 Special . | . . . . Kinetic 62 | . 20 31 11 Thermal . | . . . . Explosive 16 | . . 3 13 Electromagnetic . | . . . . Robot Hit Streak 6 | . 2 6 6 Robot Miss Streak 5 | . 3 4 5 Penetration Max . | . . . . Secondary Targets . | . . . . Shots Hit Robots 34 | . 9 15 10 Core Hits 28 | . 8 8 12 Critical Kills . | . . . . Critical Parts Destroyed . | . . . . Critical Strikes . | . . . . Melee Attacks . | . . . . Impact . | . . . . Slashing . | . . . . Piercing . | . . . . Sneak Attacks . | . . . . Combat Hostiles . | . . . . Follow-up Attacks . | . . . . Damage Inflicted 1550 | . 217 504 829 Guns . | . . . . Cannons 643 | . 217 337 89 Explosions 907 | . . 167 740 Melee . | . . . . Ramming . | . . . . Kinetic 643 | . 217 337 89 Thermal . | . . . . Explosive 907 | . . 167 740 Electromagnetic . | . . . . Impact . | . . . . Slashing . | . . . . Piercing . | . . . . Highest Corruption . | . . . . Average Corruption . | . . . . Corruption Purged . | . . . . Corruption Blocked . | . . . . Overload Shots . | . . . . Overflow Damage 66 | . . 55 11 Projectiles 29 | . . 29 . Explosions 37 | . . 26 11 Melee . | . . . . Knockbacks 9 | . . 7 2 Impact . | . . . . Kinetic 7 | . . 5 2 Secondary 2 | . . 2 . Self-Inflicted Damage 85 | . . . 85 Shots 2 | . . . 2 Rammed . | . . . . Targets Rammed . | . . . . Kicked . | . . . . Crushed . | . . . . Highest Temperature 259 | . 84 259 . Average Temperature 82 | . 36 107 . Received Heat Transfer 484 | . 12 400 72 Siege Activations . | . . . . Robots Corrupted . | . . . . Combat Hostiles . | . . . . Parts Fried . | . . . . Impact Corruptions 1 | . . 1 . Robots Melted . | . . . . Combat Hostiles . | . . . . Parts Melted 1 | . . . 1 Heat Transferred . | . . . . Parts Sabotaged . | . . . . Parts Stolen . | . . . . Parts Stripped . | . . . . Power Chain Reactions . | . . . . Alert | -11 -10 -10 -10 ------- Run | Yrd Mat Min Sub Peak Influence 214 | . 214 136 . Initial 83 | . . 83 . Average 70 | . 73 83 . Maximum Alert Level 1 | . 1 . . Low Security (%) 92 | 100 87 100 . Level 1 7 | . 12 . . Level 2 . | . . . . Level 3 . | . . . . Level 4 . | . . . . Level 5 . | . . . . High Security . | . . . . Max Security . | . . . . Squads Dispatched 2 | . 2 . . Investigation 2 | . 2 . . Extermination . | . . . . Reinforcement . | . . . . Assault . | . . . . Garrison . | . . . . Intercept . | . . . . Searches Triggered . | . . . . Construction Impeded . | . . . . Haulers Reinforced . | . . . . Active Scanning Responses . | . . . . Cargo Convoy Interrupts . | . . . . Stealth | -11 -10 -10 -10 --------- Run | Yrd Mat Min Sub Distress Signals . | . . . . Communications Jammed . | . . . . Distress Signals . | . . . . Times Spotted 32 | . 7 17 8 Peak Tracking Total 12 | . 3 12 4 Tactical Retreats 5 | . 1 4 . Traps | -11 -10 -10 -10 ------- Run | Yrd Mat Min Sub Traps Triggered 1 | . 1 . . Indirectly . | . . . . Trap Hack Attempts . | . . . . Triggered . | . . . . Disarmed . | . . . . Reprogrammed . | . . . . Reused . | . . . . Traps Extracted . | . . . . Installed . | . . . . Triggered . | . . . . Machines | -11 -10 -10 -10 ---------- Run | Yrd Mat Min Sub Machines Disabled 1 | . 1 . . Max in Single Turn 1 | . 1 . . Machines Repaired . | . . . . Machines Dismantled . | . . . . Machines Sabotaged . | . . . . Overloaded Fab Kills . | . . . . Hacking | -11 -10 -10 -10 --------- Run | Yrd Mat Min Sub Machines Accessed 3 | . 3 . . Terminals 3 | . 3 . . Fabricators . | . . . . Repair Stations . | . . . . Recycling Units . | . . . . Scanalyzers . | . . . . Garrison Access . | . . . . Total Hacks 7 | . 7 . . Successful 3 | . 3 . . Failed 4 | . 4 . . Catastrophic 2 | . 2 . . Database Lockouts . | . . . . Manual 5 | . 5 . . Terminals 7 | . 7 . . Fabricators . | . . . . Repair Stations . | . . . . Recycling Units . | . . . . Scanalyzers . | . . . . Garrison Access . | . . . . Terminal Hacks 3 | . 3 . . Branch Access Points 1 | . 1 . . Investigation Status 1 | . 1 . . Registered Components 1 | . 1 . . Fabricator Hacks . | . . . . Repair Station Hacks . | . . . . Recycling Unit Hacks . | . . . . Scanalyzer . | . . . . Garrison Access Hacks . | . . . . Unauthorized Hacks . | . . . . Terminals . | . . . . Fabricators . | . . . . Repair Stations . | . . . . Recycling Units . | . . . . Scanalyzers . | . . . . Garrison Access . | . . . . Data Cores Recovered . | . . . . Used . | . . . . Hacking Detections 3 | . 3 . . Full Trace Events 2 | . 2 . . Feedback Events . | . . . . Feedback Blocked . | . . . . Robot Schematics Acquired . | . . . . Robots Built . | . . . . Authchips . | . . . . Time . | . . . . Total Robot Build Rating . | . . . . Part Schematics Acquired . | . . . . Parts Built . | . . . . Authchips . | . . . . Time . | . . . . Total Part Build Rating . | . . . . Parts Repaired . | . . . . Time . | . . . . Parts Recycled . | . . . . Recycled Matter . | . . . . Retrieved Matter . | . . . . Retrieved Components . | . . . . Parts Scanalyzed . | . . . . Part Schematics Acquired . | . . . . Parts Damaged . | . . . . Bothacking | -11 -10 -10 -10 ------------ Run | Yrd Mat Min Sub Used RIF Installer . | . . . . Robots Hacked . | . . . . Non-combat . | . . . . Combat . | . . . . Robot Hacks Applied . | . . . . Relay Couplers Released . | . . . . Fabnet Peak Effective % . | . . . . Robots Rewired . | . . . . Allies Hacked . | . . . . Hacks Repelled . | . . . . Allies | -11 -10 -10 -10 -------- Run | Yrd Mat Min Sub Total Allies . | . . . . Largest Group . | . . . . Highest-Rated Group . | . . . . Highest-Rated Ally . | . . . . Total Orders . | . . . . Ally Attacks . | . . . . Total Damage . | . . . . Kills . | . . . . Allies Corrupted . | . . . . Allies Melted . | . . . . Intel | -11 -10 -10 -10 ------- Run | Yrd Mat Min Sub Robot Analysis Total . | . . . . Derelict Logs Recovered 1 | . . 1 . Drone Launches . | . . . . Drone Recoveries . | . . . . Exploration | -11 -10 -10 -10 ------------- Run | Yrd Mat Min Sub Turns Passed 1112 | 63 374 243 432 Spaces Moved 830 | 33 200 170 427 Core 1 | 1 . . . Treads 255 | 32 200 23 . Legs . | . . . . Wheels 574 | . . 147 427 Hover . | . . . . Flight . | . . . . Fastest Speed 50 | 50 160 90 90 Average Speed 111 | 156 160 100 90 Slowest Speed 160 | 160 160 160 90 Overloaded Moves . | . . . . Propulsion Burnouts . | . . . . Robots Hopped . | . . . . Cave-ins Triggered . | . . . . Exploration Rate (%) 29 | 4 42 39 31 Regions Visited 3 Branch Regions 2 Pre-discovered Areas . | . . . . Known Exits Taken 1 | . 1 . . Unknown Exits Taken 2 | 1 . 1 . Scrap Searched 10 | . . 1 9 Spaces Dug . | . . . . Terrain Destroyed 95 | . . 29 66 Melee . | . . . . Projectile 2 | . . 1 1 AOE 93 | . . 28 65 Terrain Rammed . | . . . . Walls Destroyed . | . . . . Machines Disabled . | . . . . Actions | -11 -10 -10 -10 --------- Run | Yrd Mat Min Sub Total 932 | 41 234 206 451 Wait 22 | . 11 11 . Move 827 | 32 199 169 427 Hop . | . . . . Pick Up 16 | 3 8 2 3 Fast Attach 10 | 6 3 1 . Attach 1 | . . 1 . Detach . | . . . . Swap 5 | . . 3 2 Drop 7 | . 3 1 3 Fire 44 | . 10 18 16 Melee . | . . . . Ram . | . . . . Kick . | . . . . Crush . | . . . . Escape Stasis . | . . . . Rewire . | . . . . Trap . | . . . . Miscellaneous . | . . . . Route ------- -11/Scrapyard -10/Materials (discovered 3 exits: [*Mat] / *Min x2) -10/Mines -10/Subcaves History --------- Turn | Location | Event 46 | -11/Scrapyard | Discovered new exit (range 12) 64 | -11/Scrapyard | Entered Materials 168 | -10/Materials | Identified exit to Mines 300 | -10/Materials | Build established: Mutant 305 | -10/Materials | Discovered new exit (range 11) 438 | -10/Materials | Entered Mines 450 | -10/Mines | Learned 2 Materials zone layouts 465 | -10/Mines | Assembled infested the area 603 | -10/Mines | Received a Rocket Launcher from a helpful Derelict 674 | -10/Mines | Discovered new exit (range 8) 681 | -10/Mines | Entered Subcaves 887 | -10/Subcaves | Ambushed by Subdweller buried in earth 1035 | -10/Subcaves | Disturbed a concealed Subdweller 1047 | -10/Subcaves | Core integrity fell below 50% 1095 | -10/Subcaves | Ambushed by Subdweller buried in earth 1109 | -10/Subcaves | Core integrity fell below 20% 1113 | -10/Subcaves | Destroyed by SE-MXN(R) with Subdweller Laser Last Messages --------------- Acquired 4 matter. Searching scrap... Found Sub. Machine Gun. Found 24 Matter. Acquired 10 matter. HU-9RR(R) knocked back. Acquired 8 matter. HU-9RR(R) knocked back. Acquired 6 matter. HU-9RR(R) destroyed. Dropped Imp. Light Cannon. Acquired Mak. Kinetic Plating. SP-9JA(R): "FREEEEDUMB!" SE-MXN(R): "ARGHSUB!" Com. Wheel destroyed. 85-IP7(R) destroyed. Wheel destroyed. Rocket Launcher destroyed. Destroyed Rocket Launcher. [Achievement: Achiever] Map ----- +----------------------------------------------------+ | ?????????????# ## ### # | | ?????????????# ######## | | ?????????????# ## ##??????## # | | ?????????????# #### ##????????## # ### ## | | ?????????????# ##?###??????????# ###?###? | | ?????????????## ###????????????## ?????? | | ??????????????# ##????????????## #?????? | | ??????????????# #?????????????# ##?????? | | ??????????????# #????????????# ##??????? | | ??????????????# ## ###??????????# ##???????? | | ??????????????# ### #??????????## ##????????? | | ???????######?# #? #???????????###?????????? | | ?????###"" "#### #?# ##?????#????????????????? | | ????## " " ### ##??# ##### ?????????????????? | | ????#" "" "## #????# ??????????????????? | | ???##" " "## #???## ???????????????????? | | ???#" "# #?### ???????????????????? | | ???#" ] ## ## #?# ????????????????????? | | ???# /%][]# #" #?# #???????????????????????? | | ???#" %[# ### #???????????????????????? | | ???# &[ ]# ## ##??????????????????????? | | ???# & []&# #" ##?????????????????????? | | ???##" "&& ###" #???? #??????????????? | | ????#" &%%! ## ### #### #???????????????? | | ????##"%"& ""### #?# # #??????????????? | | ?????###"""""##?#"" #?# @ #???????????????? | | ???????#######??##" ## # #?????????????? | | ?????????????????#" # RR #?????????????? | | ?????????????????# # %= #????????????? | | ?????????????????#### [ $$# #????????????? | | ????????????????????# $<<#?### ???????????? | | ????????????????????# #<$<#?????? ??????????? | | ????????????????????# #### #???????????????? | | ????????????????????# ### #???????????????? | | ????????????????????""? ## # #??????????? | | ???????????????????? """# ##?? #????????????????? | | ??????????????????? "####???? ????????????????? | | ????????????????? #????????? #???????????????? | | ???????????????? ###???????????#???????????????? | | ???????????????# ???????????????????????????????? | | ???????????????##????????????????????????????????? | | ?????????????????????????????????????????????????? | | ?????????????????????????????????????????????????? | | ?????????????????????????????????????????????????? | | ?????????????????????????????????????????????????? | | ?????????????????????????????????????????????????? | | ?????????????????????????????????????????????????? | | ?????????????????????????????????????????????????? | | ?????????????????????????????????????????????????? | | ?????????????????????????????????????????????????? | +----------------------------------------------------+ Best States ------------- Heat Dissipation 25 Energy Generation 10 Energy Capacity 250 Matter Stores 300 Matter Capacity 300 Sight Range 16 Terrain Scan Density 10 Evasion (%) 42 Recoil Reduction 2 Item Schematics ----------------- None Robot Schematics ------------------ None Fabricated ------------ Nothing Alien Tech Used ----------------- None Achievements -------------- Achiever I Survived The Infestation Challenges ------------ None Game ------ Seed NeutrinoPotentialRegenerator Manual? 0 Play Time 00:16:28 Cumulative 11.3 hours Start 2024.04.04 @ 17:17:38 End 2024.04.04 @ 17:31:37 Sessions 1 Manual Loads 0 Difficulty Rogue Special Mode None Game No. 10 Rogue 10 Adventurer 0 Explorer 0 Win Type - Total 0 Types 0/0/0/0/0/0/0/0/0 Lore% 24 Gallery% 18 Achievement% 25 Wizard Run 0 Options --------- Layout 1 ASCII 0 Keyboard 0 Movement Arrows Keybinds 0 Fullscreen 0 Font 20/SmallcapsGlow Map View 50x35 Zoom Use 0% Tactical HUD 0 Map Filters NONE Filters NONE Steam 1 RUN: 0b451bcb-e2c4-4632-8938-5741620c6d2d